[Event "Titled Tuesday Blitz March 29 Late 2022"]
[White "Smirnov, Pavel"]
[Black "Kosakowski, Jakub"]
[WhiteFideId "4123425"]
[BlackFideId "1185080"]
[WhiteElo "2545"]
[BlackElo "2476"]
[Result "0-1"]
[Round "10"]
[TimeControl "180+1"]
[Date "2022.03.29"]
[WhiteClock "0:00:14"]
[BlackClock "0:00:18"]

1. e4 {[%clk 0:03:00]}  c5 {[%clk 0:02:56]} 2. c3 {[%clk 0:03:00]}  d5 {[%clk 0:02:53]} 3. exd5 {[%clk 0:02:59]}  Qxd5 {[%clk 0:02:54]} 4. d4 {[%clk 0:02:59]}  Nf6 {[%clk 0:02:54]} 5. Nf3 {[%clk 0:02:58]}  Bg4 {[%clk 0:02:54]} 6. dxc5 {[%clk 0:02:57]}  Qxd1+ {[%clk 0:02:44]} 7. Kxd1 {[%clk 0:02:56]}  e5 {[%clk 0:02:43]} 8. b4 {[%clk 0:02:56]}  e4 {[%clk 0:02:40]} 9. h3 {[%clk 0:02:54]}  exf3 {[%clk 0:02:40]} 10. hxg4 {[%clk 0:02:52]}  Nxg4 {[%clk 0:02:37]} 11. Rh4 {[%clk 0:02:44]}  h5 {[%clk 0:02:30]} 12. Ke1 {[%clk 0:02:38]}  Be7 {[%clk 0:02:29]} 13. Rh3 {[%clk 0:02:37]}  fxg2 {[%clk 0:02:16]} 14. Bxg2 {[%clk 0:02:36]}  Nc6 {[%clk 0:02:16]} 15. Nd2 {[%clk 0:02:34]}  O-O-O {[%clk 0:02:09]} 16. Nc4 {[%clk 0:02:23]}  Rhe8 {[%clk 0:02:07]} 17. Be3 {[%clk 0:02:21]}  Bf6 {[%clk 0:01:40]} 18. Rc1 {[%clk 0:02:16]}  Nce5 {[%clk 0:01:20]} 19. Nxe5 {[%clk 0:02:09]}  Bxe5 {[%clk 0:01:13]} 20. Ke2 {[%clk 0:02:05]}  g6 {[%clk 0:01:07]} 21. c6 {[%clk 0:02:00]}  bxc6 {[%clk 0:00:58]} 22. Bxc6 {[%clk 0:01:57]}  Re6 {[%clk 0:00:59]} 23. b5 {[%clk 0:01:57]}  Bf4 {[%clk 0:00:56]} 24. c4 {[%clk 0:01:43]}  f5 {[%clk 0:00:37]} 25. Bd5 {[%clk 0:01:37]}  Re7 {[%clk 0:00:37]} 26. a4 {[%clk 0:01:32]}  Bxe3 {[%clk 0:00:35]} 27. fxe3 {[%clk 0:01:31]}  f4 {[%clk 0:00:36]} 28. e4 {[%clk 0:01:28]}  Nf6 {[%clk 0:00:36]} 29. Kf3 {[%clk 0:01:20]}  g5 {[%clk 0:00:36]} 30. Rhh1 {[%clk 0:01:19]}  Rf8 {[%clk 0:00:35]} 31. a5 {[%clk 0:01:03]}  g4+ {[%clk 0:00:35]} 32. Kg2 {[%clk 0:01:02]}  Nxe4 {[%clk 0:00:33]} 33. Rxh5 {[%clk 0:00:57]}  f3+ {[%clk 0:00:33]} 34. Kg1 {[%clk 0:00:54]}  g3 {[%clk 0:00:33]} 35. b6 {[%clk 0:00:41]}  axb6 {[%clk 0:00:24]} 36. axb6 {[%clk 0:00:41]}  Nc3 {[%clk 0:00:19]} 37. b7+ {[%clk 0:00:18]}  Kb8 {[%clk 0:00:18]} 38. Ra1 {[%clk 0:00:18]}  Nxd5 {[%clk 0:00:18]} 39. cxd5 {[%clk 0:00:17]}  Re1+ {[%clk 0:00:18]} 40. Rxe1 {[%clk 0:00:15]}  f2+ {[%clk 0:00:19]} 41. Kf1 {[%clk 0:00:15]}  g2+ {[%clk 0:00:19]} 42. Ke2 {[%clk 0:00:14]}  f1=Q+ {[%clk 0:00:18]} 0-1


[Site "https://www.chess.com"]

[Event "Titled Tuesday Blitz March 29 Late 2022"]
[White "Taichman, Ori"]
[Black "Rorrer, Grayson"]
[WhiteFideId "2804069"]
[BlackFideId "30944996"]
[WhiteElo "2227"]
[BlackElo "2122"]
[Result "1-0"]
[Round "10"]
[TimeControl "180+1"]
[Date "2022.03.29"]
[WhiteClock "0:00:22"]
[BlackClock "0:00:11"]

1. e4 {[%clk 0:02:59]}  e5 {[%clk 0:02:59]} 2. d4 {[%clk 0:02:59]}  exd4 {[%clk 0:02:58]} 3. Qxd4 {[%clk 0:02:59]}  Nc6 {[%clk 0:02:58]} 4. Qe3 {[%clk 0:03:00]}  Nf6 {[%clk 0:02:50]} 5. Nc3 {[%clk 0:03:00]}  Bb4 {[%clk 0:02:51]} 6. Bd2 {[%clk 0:02:57]}  O-O {[%clk 0:02:51]} 7. O-O-O {[%clk 0:02:58]}  Re8 {[%clk 0:02:51]} 8. Qg3 {[%clk 0:02:58]}  d6 {[%clk 0:02:43]} 9. f3 {[%clk 0:02:57]}  a5 {[%clk 0:02:39]} 10. Nge2 {[%clk 0:02:56]}  Ne5 {[%clk 0:02:32]} 11. Bg5 {[%clk 0:02:54]}  h6 {[%clk 0:02:27]} 12. h4 {[%clk 0:02:49]}  Kh8 {[%clk 0:02:23]} 13. f4 {[%clk 0:02:46]}  Ned7 {[%clk 0:02:22]} 14. e5 {[%clk 0:02:44]}  hxg5 {[%clk 0:01:47]} 15. exf6 {[%clk 0:02:32]}  g4 {[%clk 0:01:46]} 16. fxg7+ {[%clk 0:02:31]}  Kg8 {[%clk 0:01:47]} 17. h5 {[%clk 0:02:19]}  Kxg7 {[%clk 0:01:40]} 18. Qxg4+ {[%clk 0:02:19]}  Kh8 {[%clk 0:01:40]} 19. h6 {[%clk 0:02:18]}  Rg8 {[%clk 0:01:40]} 20. Qh5 {[%clk 0:02:18]}  Rg6 {[%clk 0:01:25]} 21. Ne4 {[%clk 0:02:05]}  Qe7 {[%clk 0:01:18]} 22. f5 {[%clk 0:01:51]}  Rg8 {[%clk 0:01:12]} 23. h7 {[%clk 0:01:47]}  Rg7 {[%clk 0:01:10]} 24. Qh6 {[%clk 0:01:38]}  f6 {[%clk 0:01:10]} 25. Nf4 {[%clk 0:01:36]}  Nf8 {[%clk 0:01:07]} 26. Nxf6 {[%clk 0:01:20]}  Bxf5 {[%clk 0:01:02]} 27. N4h5 {[%clk 0:01:20]}  Rg6 {[%clk 0:00:59]} 28. Qf4 {[%clk 0:01:14]}  Qe5 {[%clk 0:00:25]} 29. Qc4 {[%clk 0:01:13]}  Be6 {[%clk 0:00:23]} 30. Qh4 {[%clk 0:00:41]}  Qg5+ {[%clk 0:00:10]} 31. Qxg5 {[%clk 0:00:40]}  Rxg5 {[%clk 0:00:11]} 32. Kb1 {[%clk 0:00:30]}  a4 {[%clk 0:00:11]} 33. a3 {[%clk 0:00:30]}  Bc5 {[%clk 0:00:11]} 34. Bd3 {[%clk 0:00:24]}  Bf5 {[%clk 0:00:10]} 35. Bxf5 {[%clk 0:00:23]}  Rxf5 {[%clk 0:00:11]} 36. g4 {[%clk 0:00:24]}  Rg5 {[%clk 0:00:10]} 37. Rde1 {[%clk 0:00:23]}  d5 {[%clk 0:00:06]} 38. Nf4 {[%clk 0:00:17]}  c6 {[%clk 0:00:05]} 39. Ne6 {[%clk 0:00:16]}  Nxe6 {[%clk 0:00:05]} 40. Rxe6 {[%clk 0:00:17]}  Bd4 {[%clk 0:00:05]} 41. Re8+ {[%clk 0:00:16]}  Rxe8 {[%clk 0:00:05]} 42. Nxe8 {[%clk 0:00:17]}  Rxg4 {[%clk 0:00:05]} 43. Nd6 {[%clk 0:00:17]}  Rf4 {[%clk 0:00:04]} 44. Nxb7 {[%clk 0:00:17]}  Rf7 {[%clk 0:00:05]} 45. Nd8 {[%clk 0:00:17]}  Rc7 {[%clk 0:00:04]} 46. Ne6 {[%clk 0:00:17]}  Rxh7 {[%clk 0:00:02]} 47. Rxh7+ {[%clk 0:00:16]}  Kxh7 {[%clk 0:00:03]} 48. Nxd4 {[%clk 0:00:17]}  c5 {[%clk 0:00:04]} 49. Ne6 {[%clk 0:00:17]}  c4 {[%clk 0:00:04]} 50. Nf4 {[%clk 0:00:16]}  d4 {[%clk 0:00:04]} 51. Ne6 {[%clk 0:00:16]}  d3 {[%clk 0:00:05]} 52. cxd3 {[%clk 0:00:17]}  cxd3 {[%clk 0:00:06]} 53. Kc1 {[%clk 0:00:17]}  Kg6 {[%clk 0:00:06]} 54. Kd2 {[%clk 0:00:18]}  Kf5 {[%clk 0:00:07]} 55. Nc5 {[%clk 0:00:19]}  Ke5 {[%clk 0:00:07]} 56. Nxd3+ {[%clk 0:00:19]}  Kd4 {[%clk 0:00:07]} 57. Kc2 {[%clk 0:00:19]}  Kc4 {[%clk 0:00:08]} 58. Nc1 {[%clk 0:00:19]}  Kd4 {[%clk 0:00:08]} 59. Na2 {[%clk 0:00:20]}  Kc4 {[%clk 0:00:08]} 60. Nc3 {[%clk 0:00:21]}  Kc5 {[%clk 0:00:09]} 61. Nxa4+ {[%clk 0:00:21]}  Kb5 {[%clk 0:00:10]} 62. Nc3+ {[%clk 0:00:22]}  Ka5 {[%clk 0:00:11]} 63. b4+ {[%clk 0:00:22]}  Ka6 {[%clk 0:00:11]} 1-0


[Site "https://www.chess.com"]

[Event "Titled Tuesday Blitz March 29 Late 2022"]
[White "Tanenbaum, Zachary"]
[Black "Cardoso Cardoso, Jose Gabriel"]
[WhiteFideId "2060850"]
[BlackFideId "4430492"]
[WhiteElo "2168"]
[BlackElo "2451"]
[Result "0-1"]
[Round "10"]
[TimeControl "180+1"]
[Date "2022.03.29"]
[WhiteClock "0:00:34"]
[BlackClock "0:00:25"]

1. e4 {[%clk 0:03:00]}  e5 {[%clk 0:02:50]} 2. Nf3 {[%clk 0:03:00]}  Nc6 {[%clk 0:02:50]} 3. Bc4 {[%clk 0:03:00]}  Nf6 {[%clk 0:02:48]} 4. d3 {[%clk 0:03:00]}  Bc5 {[%clk 0:02:44]} 5. c3 {[%clk 0:03:00]}  a5 {[%clk 0:02:42]} 6. a4 {[%clk 0:02:59]}  d6 {[%clk 0:02:41]} 7. Nbd2 {[%clk 0:02:58]}  O-O {[%clk 0:02:39]} 8. Nf1 {[%clk 0:02:57]}  Ng4 {[%clk 0:02:35]} 9. Ne3 {[%clk 0:02:57]}  Kh8 {[%clk 0:02:31]} 10. O-O {[%clk 0:02:51]}  f5 {[%clk 0:02:22]} 11. Nxf5 {[%clk 0:02:25]}  Bxf5 {[%clk 0:02:13]} 12. exf5 {[%clk 0:02:25]}  d5 {[%clk 0:02:01]} 13. Bb5 {[%clk 0:02:25]}  Rxf5 {[%clk 0:02:00]} 14. d4 {[%clk 0:02:21]}  exd4 {[%clk 0:01:37]} 15. Bxc6 {[%clk 0:02:00]}  bxc6 {[%clk 0:01:31]} 16. Nxd4 {[%clk 0:02:00]}  Qh4 {[%clk 0:01:31]} 17. h3 {[%clk 0:02:00]}  Nxf2 {[%clk 0:01:28]} 18. Qe2 {[%clk 0:01:49]}  Nxh3+ {[%clk 0:01:02]} 19. gxh3 {[%clk 0:01:41]}  Qg3+ {[%clk 0:01:02]} 20. Kh1 {[%clk 0:01:10]}  Qxh3+ {[%clk 0:01:01]} 21. Kg1 {[%clk 0:01:10]}  Qg3+ {[%clk 0:00:41]} 22. Kh1 {[%clk 0:01:10]}  Bxd4 {[%clk 0:00:25]} 23. Rxf5 {[%clk 0:00:34]}  Qg1# {[%clk 0:00:25]} 0-1


[Site "https://www.chess.com"]

[Event "Titled Tuesday Blitz March 29 Late 2022"]
[White "Tsukerman, Julia"]
[Black "Alimpic, Aleksa"]
[WhiteFideId "2621649"]
[BlackFideId "974323"]
[WhiteElo "2124"]
[BlackElo "2130"]
[Result "1/2-1/2"]
[Round "10"]
[TimeControl "180+1"]
[Date "2022.03.30"]
[WhiteClock "0:01:25"]
[BlackClock "0:00:19"]

1. e4 {[%clk 0:02:59]}  g6 {[%clk 0:02:56]} 2. d4 {[%clk 0:02:55]}  c6 {[%clk 0:02:54]} 3. Nc3 {[%clk 0:02:55]}  d5 {[%clk 0:02:52]} 4. e5 {[%clk 0:02:54]}  h5 {[%clk 0:02:51]} 5. Be3 {[%clk 0:02:54]}  Bh6 {[%clk 0:02:49]} 6. Qd2 {[%clk 0:02:54]}  Bxe3 {[%clk 0:02:49]} 7. Qxe3 {[%clk 0:02:54]}  Bf5 {[%clk 0:02:48]} 8. O-O-O {[%clk 0:02:52]}  e6 {[%clk 0:02:45]} 9. f4 {[%clk 0:02:52]}  Nh6 {[%clk 0:02:42]} 10. h3 {[%clk 0:02:51]}  Nd7 {[%clk 0:02:39]} 11. Nf3 {[%clk 0:02:51]}  b5 {[%clk 0:02:36]} 12. Rg1 {[%clk 0:02:51]}  a5 {[%clk 0:02:35]} 13. Kb1 {[%clk 0:02:47]}  a4 {[%clk 0:02:35]} 14. Ne2 {[%clk 0:02:42]}  Nb6 {[%clk 0:02:29]} 15. Ng3 {[%clk 0:02:42]}  h4 {[%clk 0:02:22]} 16. Nxf5 {[%clk 0:02:41]}  Nxf5 {[%clk 0:02:23]} 17. Qc3 {[%clk 0:02:40]}  Nc4 {[%clk 0:02:18]} 18. Bd3 {[%clk 0:02:36]}  Qa5 {[%clk 0:02:08]} 19. Qxa5 {[%clk 0:02:32]}  Rxa5 {[%clk 0:02:09]} 20. Bxc4 {[%clk 0:02:30]}  bxc4 {[%clk 0:02:09]} 21. c3 {[%clk 0:02:30]}  Ke7 {[%clk 0:01:58]} 22. Rd2 {[%clk 0:02:30]}  a3 {[%clk 0:01:51]} 23. b3 {[%clk 0:02:26]}  Rb8 {[%clk 0:01:50]} 24. b4 {[%clk 0:02:26]}  Raa8 {[%clk 0:01:27]} 25. Kc1 {[%clk 0:02:26]}  Ng3 {[%clk 0:01:24]} 26. Nxh4 {[%clk 0:02:16]}  Ne4 {[%clk 0:01:24]} 27. Rc2 {[%clk 0:02:16]}  Rh8 {[%clk 0:01:20]} 28. Nf3 {[%clk 0:02:16]}  Rag8 {[%clk 0:01:13]} 29. Nd2 {[%clk 0:02:07]}  Nf2 {[%clk 0:01:11]} 30. Nb1 {[%clk 0:02:00]}  Nd3+ {[%clk 0:01:11]} 31. Kd2 {[%clk 0:01:58]}  Nxf4 {[%clk 0:01:06]} 32. Nxa3 {[%clk 0:01:56]}  Ra8 {[%clk 0:00:57]} 33. Nb1 {[%clk 0:01:55]}  g5 {[%clk 0:00:55]} 34. Ke3 {[%clk 0:01:56]}  Rhg8 {[%clk 0:00:46]} 35. Nd2 {[%clk 0:01:56]}  Nd3 {[%clk 0:00:45]} 36. Ra1 {[%clk 0:01:50]}  Ra3 {[%clk 0:00:42]} 37. Nb1 {[%clk 0:01:48]}  Ra4 {[%clk 0:00:41]} 38. Nd2 {[%clk 0:01:45]}  g4 {[%clk 0:00:40]} 39. hxg4 {[%clk 0:01:43]}  Rxg4 {[%clk 0:00:41]} 40. Rg1 {[%clk 0:01:43]}  Rg8 {[%clk 0:00:35]} 41. g4 {[%clk 0:01:41]}  Rga8 {[%clk 0:00:34]} 42. Ra1 {[%clk 0:01:40]}  Rg8 {[%clk 0:00:33]} 43. Rg1 {[%clk 0:01:40]}  Rga8 {[%clk 0:00:33]} 44. Ra1 {[%clk 0:01:37]}  Rh8 {[%clk 0:00:33]} 45. Rg1 {[%clk 0:01:34]}  Rh3+ {[%clk 0:00:32]} 46. Nf3 {[%clk 0:01:32]}  Rh8 {[%clk 0:00:29]} 47. g5 {[%clk 0:01:32]}  Rha8 {[%clk 0:00:25]} 48. Rgg2 {[%clk 0:01:31]}  Rg8 {[%clk 0:00:24]} 49. Rce2 {[%clk 0:01:27]}  Nc1 {[%clk 0:00:19]} 50. Rc2 {[%clk 0:01:27]}  Nd3 {[%clk 0:00:20]} 51. Rce2 {[%clk 0:01:25]}  Nc1 {[%clk 0:00:20]} 52. Rc2 {[%clk 0:01:25]}  Nd3 {[%clk 0:00:19]} 1/2-1/2


[Site "https://www.chess.com"]

[Event "Titled Tuesday Blitz March 29 Late 2022"]
[White "Van den Dikkenberg, Erik"]
[Black "Estrada Nieto, Julian"]
[WhiteFideId "1005880"]
[BlackFideId "5101018"]
[WhiteElo "2118"]
[BlackElo "2246"]
[Result "0-1"]
[Round "10"]
[TimeControl "180+1"]
[Date "2022.03.30"]
[WhiteClock "0:00:10"]
[BlackClock "0:00:26"]

1. e4 {[%clk 0:03:00]}  e5 {[%clk 0:02:59]} 2. Nf3 {[%clk 0:03:00]}  Nc6 {[%clk 0:02:59]} 3. d4 {[%clk 0:03:00]}  exd4 {[%clk 0:02:58]} 4. Nxd4 {[%clk 0:03:01]}  Nf6 {[%clk 0:02:58]} 5. Nxc6 {[%clk 0:03:01]}  bxc6 {[%clk 0:02:59]} 6. e5 {[%clk 0:03:01]}  Qe7 {[%clk 0:02:59]} 7. Qe2 {[%clk 0:03:01]}  Nd5 {[%clk 0:02:59]} 8. h4 {[%clk 0:03:01]}  Qe6 {[%clk 0:02:58]} 9. c4 {[%clk 0:03:00]}  Nb6 {[%clk 0:02:56]} 10. Nd2 {[%clk 0:02:59]}  Ba6 {[%clk 0:02:51]} 11. Rh3 {[%clk 0:02:53]}  Bb4 {[%clk 0:02:47]} 12. b3 {[%clk 0:02:51]}  O-O-O {[%clk 0:02:42]} 13. a3 {[%clk 0:02:22]}  Bxd2+ {[%clk 0:02:36]} 14. Bxd2 {[%clk 0:02:21]}  Rhe8 {[%clk 0:02:36]} 15. Re3 {[%clk 0:02:17]}  Qg6 {[%clk 0:02:03]} 16. O-O-O {[%clk 0:02:10]}  d5 {[%clk 0:01:56]} 17. h5 {[%clk 0:02:05]}  Qe6 {[%clk 0:01:42]} 18. cxd5 {[%clk 0:01:16]}  Bxe2 {[%clk 0:01:41]} 19. dxe6 {[%clk 0:01:16]}  Bxd1 {[%clk 0:01:38]} 20. exf7 {[%clk 0:01:15]}  Re7 {[%clk 0:01:28]} 21. Kxd1 {[%clk 0:01:01]}  Nd5 {[%clk 0:01:22]} 22. Ba6+ {[%clk 0:00:57]}  Kb8 {[%clk 0:01:13]} 23. Rf3 {[%clk 0:00:44]}  Rf8 {[%clk 0:01:07]} 24. Bc4 {[%clk 0:00:33]}  Rxe5 {[%clk 0:00:58]} 25. Bb4 {[%clk 0:00:21]}  c5 {[%clk 0:00:52]} 26. Ba5 {[%clk 0:00:15]}  Nb6 {[%clk 0:00:47]} 27. Bxb6 {[%clk 0:00:12]}  axb6 {[%clk 0:00:46]} 28. a4 {[%clk 0:00:12]}  c6 {[%clk 0:00:42]} 29. Rg3 {[%clk 0:00:12]}  b5 {[%clk 0:00:36]} 30. Rxg7 {[%clk 0:00:12]}  bxc4 {[%clk 0:00:29]} 31. Rg8 {[%clk 0:00:13]}  Rd5+ {[%clk 0:00:29]} 32. Kc2 {[%clk 0:00:12]}  cxb3+ {[%clk 0:00:29]} 33. Kxb3 {[%clk 0:00:12]}  Rdd8 {[%clk 0:00:29]} 34. Rg7 {[%clk 0:00:12]}  Kc7 {[%clk 0:00:27]} 35. Kc4 {[%clk 0:00:12]}  Rd7 {[%clk 0:00:27]} 36. Kxc5 {[%clk 0:00:11]}  Rdxf7 {[%clk 0:00:27]} 37. Rg4 {[%clk 0:00:10]}  Rf5+ {[%clk 0:00:26]} 38. Kc4 {[%clk 0:00:10]}  Rf4+ {[%clk 0:00:26]} 0-1


[Site "https://www.chess.com"]

[Event "Titled Tuesday Blitz March 29 Late 2022"]
[White "Xiong, Jeffery"]
[Black "Andreikin, Dmitry"]
[WhiteFideId "2047640"]
[BlackFideId "4158814"]
[WhiteElo "2727"]
[BlackElo "2736"]
[Result "1/2-1/2"]
[Round "10"]
[TimeControl "180+1"]
[Date "2022.03.29"]
[WhiteClock "0:00:11"]
[BlackClock "0:00:09"]

1. d4 {[%clk 0:03:00]}  d5 {[%clk 0:03:00]} 2. Nf3 {[%clk 0:03:00]}  Nf6 {[%clk 0:02:59]} 3. Bf4 {[%clk 0:03:00]}  c5 {[%clk 0:02:59]} 4. e3 {[%clk 0:03:01]}  Nc6 {[%clk 0:02:58]} 5. Nbd2 {[%clk 0:03:00]}  g6 {[%clk 0:02:55]} 6. dxc5 {[%clk 0:02:59]}  Bg7 {[%clk 0:02:54]} 7. c3 {[%clk 0:02:59]}  O-O {[%clk 0:02:54]} 8. h3 {[%clk 0:02:57]}  a5 {[%clk 0:02:49]} 9. a4 {[%clk 0:02:43]}  Re8 {[%clk 0:02:38]} 10. Bb5 {[%clk 0:02:42]}  e5 {[%clk 0:02:26]} 11. Bh2 {[%clk 0:02:42]}  Nd7 {[%clk 0:02:11]} 12. Nb3 {[%clk 0:02:42]}  e4 {[%clk 0:02:11]} 13. Nfd4 {[%clk 0:02:34]}  Qf6 {[%clk 0:02:03]} 14. O-O {[%clk 0:02:30]}  Nde5 {[%clk 0:02:02]} 15. Bxe5 {[%clk 0:02:18]}  Rxe5 {[%clk 0:02:01]} 16. f4 {[%clk 0:02:17]}  Rh5 {[%clk 0:01:51]} 17. Rc1 {[%clk 0:02:00]}  Bxh3 {[%clk 0:01:47]} 18. gxh3 {[%clk 0:01:59]}  Rxh3 {[%clk 0:01:48]} 19. Qe1 {[%clk 0:01:53]}  Ne5 {[%clk 0:01:19]} 20. Rc2 {[%clk 0:01:49]}  Ng4 {[%clk 0:01:13]} 21. Bd7 {[%clk 0:01:41]}  Rxe3 {[%clk 0:01:03]} 22. Re2 {[%clk 0:01:41]}  Rxe2 {[%clk 0:00:53]} 23. Qxe2 {[%clk 0:01:42]}  Nh6 {[%clk 0:00:51]} 24. Bh3 {[%clk 0:01:38]}  Qh4 {[%clk 0:00:49]} 25. Kg2 {[%clk 0:01:25]}  f5 {[%clk 0:00:37]} 26. Ne6 {[%clk 0:01:20]}  Re8 {[%clk 0:00:31]} 27. Nxg7 {[%clk 0:01:15]}  Kxg7 {[%clk 0:00:32]} 28. Qf2 {[%clk 0:01:16]}  Qh5 {[%clk 0:00:29]} 29. Qd4+ {[%clk 0:01:15]}  Kf8 {[%clk 0:00:23]} 30. Qxd5 {[%clk 0:00:55]}  Ng4 {[%clk 0:00:18]} 31. Qd4 {[%clk 0:00:55]}  e3 {[%clk 0:00:17]} 32. Rd1 {[%clk 0:00:44]}  Nf2 {[%clk 0:00:08]} 33. Qh8+ {[%clk 0:00:42]}  Kf7 {[%clk 0:00:07]} 34. Rd7+ {[%clk 0:00:41]}  Re7 {[%clk 0:00:08]} 35. Rxe7+ {[%clk 0:00:41]}  Kxe7 {[%clk 0:00:08]} 36. Qe5+ {[%clk 0:00:41]}  Kf7 {[%clk 0:00:06]} 37. Qxe3 {[%clk 0:00:34]}  Nxh3 {[%clk 0:00:07]} 38. Qxh3 {[%clk 0:00:33]}  Qe2+ {[%clk 0:00:07]} 39. Kg1 {[%clk 0:00:33]}  Qd1+ {[%clk 0:00:07]} 40. Kf2 {[%clk 0:00:23]}  Qxb3 {[%clk 0:00:07]} 41. Qxh7+ {[%clk 0:00:23]}  Kf6 {[%clk 0:00:07]} 42. Qh8+ {[%clk 0:00:23]}  Kf7 {[%clk 0:00:08]} 43. Ke3 {[%clk 0:00:17]}  Qxb2 {[%clk 0:00:07]} 44. Qh7+ {[%clk 0:00:17]}  Kf6 {[%clk 0:00:07]} 45. Qh8+ {[%clk 0:00:15]}  Kf7 {[%clk 0:00:08]} 46. Qh7+ {[%clk 0:00:13]}  Kf6 {[%clk 0:00:08]} 47. Qh8+ {[%clk 0:00:11]}  Kf7 {[%clk 0:00:09]} 1/2-1/2


[Site "https://www.chess.com"]

[Event "Titled Tuesday Blitz March 29 Late 2022"]
[White "Yuan, Qingyu"]
[Black "Holt, Conrad"]
[WhiteFideId "8609772"]
[BlackFideId "2034387"]
[WhiteElo "2359"]
[BlackElo "2586"]
[Result "1-0"]
[Round "10"]
[TimeControl "180+1"]
[Date "2022.03.29"]
[WhiteClock "0:00:08"]
[BlackClock "0:00:05"]

1. e4 {[%clk 0:03:00]}  e6 {[%clk 0:02:59]} 2. d4 {[%clk 0:03:00]}  d5 {[%clk 0:03:00]} 3. e5 {[%clk 0:03:01]}  c5 {[%clk 0:03:00]} 4. c3 {[%clk 0:03:01]}  Bd7 {[%clk 0:03:00]} 5. Nf3 {[%clk 0:02:59]}  Nc6 {[%clk 0:02:59]} 6. Bd3 {[%clk 0:02:56]}  cxd4 {[%clk 0:02:59]} 7. O-O {[%clk 0:02:56]}  dxc3 {[%clk 0:02:55]} 8. bxc3 {[%clk 0:02:54]}  Nge7 {[%clk 0:02:52]} 9. Re1 {[%clk 0:02:48]}  Ng6 {[%clk 0:02:51]} 10. g3 {[%clk 0:02:47]}  Qc7 {[%clk 0:02:48]} 11. Qe2 {[%clk 0:02:45]}  Bc5 {[%clk 0:02:46]} 12. Nbd2 {[%clk 0:02:36]}  O-O {[%clk 0:02:41]} 13. Nb3 {[%clk 0:02:27]}  Be7 {[%clk 0:02:38]} 14. h4 {[%clk 0:02:24]}  f6 {[%clk 0:02:36]} 15. exf6 {[%clk 0:01:54]}  Bxf6 {[%clk 0:02:33]} 16. Bxg6 {[%clk 0:01:41]}  hxg6 {[%clk 0:02:32]} 17. Bf4 {[%clk 0:01:42]}  Qc8 {[%clk 0:02:04]} 18. Qd3 {[%clk 0:01:35]}  Ne7 {[%clk 0:01:42]} 19. Rac1 {[%clk 0:01:22]}  Nf5 {[%clk 0:01:26]} 20. Nbd4 {[%clk 0:01:07]}  Qc4 {[%clk 0:00:53]} 21. Qd2 {[%clk 0:00:42]}  Rac8 {[%clk 0:00:23]} 22. Ne5 {[%clk 0:00:41]}  Bxe5 {[%clk 0:00:22]} 23. Bxe5 {[%clk 0:00:40]}  b5 {[%clk 0:00:15]} 24. Qg5 {[%clk 0:00:34]}  Nxd4 {[%clk 0:00:12]} 25. Bxd4 {[%clk 0:00:26]}  Qxa2 {[%clk 0:00:10]} 26. Qxg6 {[%clk 0:00:24]}  Rf7 {[%clk 0:00:10]} 27. Re5 {[%clk 0:00:18]}  b4 {[%clk 0:00:08]} 28. Rh5 {[%clk 0:00:13]}  b3 {[%clk 0:00:05]} 29. Rh8+ {[%clk 0:00:07]}  Kxh8 {[%clk 0:00:05]} 30. Qxf7 {[%clk 0:00:08]} 1-0


[Site "https://www.chess.com"]

[Event "Titled Tuesday Blitz March 29 Late 2022"]
[White "Barria Zuniga, Daniel"]
[Black "Omariev, Maksim"]
[WhiteFideId "3400816"]
[BlackFideId "4193423"]
[WhiteElo "2414"]
[BlackElo "2518"]
[Result "1-0"]
[Round "11"]
[TimeControl "180+1"]
[Date "2022.03.29"]
[WhiteClock "0:02:55"]
[BlackClock "0:02:32"]

1. d4 {[%clk 0:03:00]}  d5 {[%clk 0:03:00]} 2. c4 {[%clk 0:03:00]}  e6 {[%clk 0:03:00]} 3. Nf3 {[%clk 0:03:00]}  Nf6 {[%clk 0:03:00]} 4. Nc3 {[%clk 0:03:01]}  Be7 {[%clk 0:02:59]} 5. Bg5 {[%clk 0:03:00]}  O-O {[%clk 0:02:59]} 6. Qc2 {[%clk 0:02:58]}  h6 {[%clk 0:02:59]} 7. Bxf6 {[%clk 0:02:58]}  Bxf6 {[%clk 0:03:00]} 8. O-O-O {[%clk 0:02:58]}  dxc4 {[%clk 0:02:58]} 9. e4 {[%clk 0:02:57]}  a6 {[%clk 0:02:59]} 10. Bxc4 {[%clk 0:02:56]}  b5 {[%clk 0:02:59]} 11. Bb3 {[%clk 0:02:57]}  Bb7 {[%clk 0:02:59]} 12. e5 {[%clk 0:02:57]}  Be7 {[%clk 0:02:59]} 13. d5 {[%clk 0:02:57]}  exd5 {[%clk 0:02:55]} 14. Nxd5 {[%clk 0:02:58]}  Bxd5 {[%clk 0:02:39]} 15. Bxd5 {[%clk 0:02:56]}  Bg5+ {[%clk 0:02:32]} 16. Kb1 {[%clk 0:02:55]} 1-0


[Site "https://www.chess.com"]

[Event "Titled Tuesday Blitz March 29 Late 2022"]
[White "Bryakin, Mikhail"]
[Black "Adewumi, Tanitoluwa"]
[WhiteFideId "4165314"]
[BlackFideId "30966396"]
[WhiteElo "2417"]
[BlackElo "2582"]
[Result "0-1"]
[Round "11"]
[TimeControl "180+1"]
[Date "2022.03.29"]
[WhiteClock "0:01:49"]
[BlackClock "0:00:16"]

1. e4 {[%clk 0:03:00]}  c5 {[%clk 0:02:53]} 2. c3 {[%clk 0:02:45]}  Nf6 {[%clk 0:02:50]} 3. e5 {[%clk 0:02:45]}  Nd5 {[%clk 0:02:49]} 4. d4 {[%clk 0:02:46]}  cxd4 {[%clk 0:02:50]} 5. Nf3 {[%clk 0:02:45]}  e6 {[%clk 0:02:45]} 6. cxd4 {[%clk 0:02:43]}  d6 {[%clk 0:02:43]} 7. Bb5+ {[%clk 0:02:42]}  Bd7 {[%clk 0:02:40]} 8. Bxd7+ {[%clk 0:02:41]}  Nxd7 {[%clk 0:02:37]} 9. O-O {[%clk 0:02:42]}  Be7 {[%clk 0:02:31]} 10. Nbd2 {[%clk 0:02:40]}  dxe5 {[%clk 0:02:27]} 11. dxe5 {[%clk 0:02:39]}  Qc7 {[%clk 0:02:25]} 12. Re1 {[%clk 0:02:39]}  Rc8 {[%clk 0:02:17]} 13. Qa4 {[%clk 0:02:36]}  O-O {[%clk 0:02:06]} 14. Qg4 {[%clk 0:02:36]}  Kh8 {[%clk 0:01:56]} 15. h4 {[%clk 0:02:36]}  Nb4 {[%clk 0:01:50]} 16. Re4 {[%clk 0:02:32]}  Nd3 {[%clk 0:01:13]} 17. Rc4 {[%clk 0:02:31]}  N7xe5 {[%clk 0:01:11]} 18. Rxc7 {[%clk 0:02:23]}  Nxg4 {[%clk 0:01:09]} 19. Rxe7 {[%clk 0:02:23]}  Nxc1 {[%clk 0:01:06]} 20. Rxb7 {[%clk 0:02:22]}  Nd3 {[%clk 0:00:58]} 21. Rxa7 {[%clk 0:02:22]}  Nxb2 {[%clk 0:00:58]} 22. Ng5 {[%clk 0:02:20]}  Kg8 {[%clk 0:00:56]} 23. Nde4 {[%clk 0:02:18]}  h6 {[%clk 0:00:55]} 24. Nf3 {[%clk 0:02:17]}  f5 {[%clk 0:00:45]} 25. Ned2 {[%clk 0:02:11]}  e5 {[%clk 0:00:41]} 26. Rb7 {[%clk 0:02:07]}  Nd3 {[%clk 0:00:37]} 27. Rb3 {[%clk 0:01:56]}  e4 {[%clk 0:00:32]} 28. Nd4 {[%clk 0:01:55]}  Ndxf2 {[%clk 0:00:26]} 29. a4 {[%clk 0:01:55]}  Rfd8 {[%clk 0:00:20]} 30. Nxf5 {[%clk 0:01:55]}  Rxd2 {[%clk 0:00:20]} 31. Ne7+ {[%clk 0:01:56]}  Kh7 {[%clk 0:00:19]} 32. Nxc8 {[%clk 0:01:57]}  e3 {[%clk 0:00:18]} 33. a5 {[%clk 0:01:53]}  e2 {[%clk 0:00:17]} 34. Re1 {[%clk 0:01:49]}  Rd1 {[%clk 0:00:15]} 35. Rb1 {[%clk 0:01:49]}  Rxb1 {[%clk 0:00:15]} 36. Rxb1 {[%clk 0:01:49]}  Nd1 {[%clk 0:00:16]} 0-1


[Site "https://www.chess.com"]